[Event "NJSK 2024 Cm"]
[Site "Groningen, Netherlands"]
[Date "2024.04.27"]
[Round "1.5"]
[White "Regterschot, Frederieke"]
[Black "Elangkumaran, Anumitra"]
[Result "0-1"]
[TimeControl "90min/40moves + 30min + 30sec/move"]
[WhiteElo "1292"]
[BlackElo "1605"]

1. e4 {[%clk 01:30:58]} {[%emt 00:00:01]} e5 {[%clk 01:30:54]} {[%emt
00:00:06]} 2. Nf3 {[%clk 01:31:21]} {[%emt 00:00:07]} Nc6 {[%clk 01:31:16]}
{[%emt 00:00:09]} 3. Bc4 {[%clk 01:31:37]} {[%emt 00:00:14]} Bc5 {[%clk
01:31:36]} {[%emt 00:00:10]} 4. d3 {[%clk 01:31:37]} {[%emt 00:00:30]} Nf6
{[%clk 01:31:27]} {[%emt 00:00:38]} 5. Nc3 {[%clk 01:31:36]} {[%emt 00:00:31]}
h6 {[%clk 01:31:37]} {[%emt 00:00:20]} 6. Bd2 {[%clk 01:31:16]} {[%emt
00:00:50]} d6 {[%clk 01:31:39]} {[%emt 00:00:28]} 7. h3 {[%clk 01:31:31]}
{[%emt 00:00:14]} O-O {[%clk 01:31:25]} {[%emt 00:00:45]} 8. O-O {[%clk
01:31:32]} {[%emt 00:00:29]} Be6 {[%clk 01:31:43]} {[%emt 00:00:12]} 9. Bxe6
{[%clk 01:31:30]} {[%emt 00:00:32]} fxe6 {[%clk 01:32:03]} {[%emt 00:00:10]} 10.
a3 {[%clk 01:31:53]} {[%emt 00:00:08]} a5 {[%clk 01:31:25]} {[%emt 00:01:08]}
11. Ne2 {[%clk 01:31:28]} {[%emt 00:00:54]} Nh5 {[%clk 01:29:20]} {[%emt
00:02:35]} 12. c3 {[%clk 01:29:22]} {[%emt 00:02:37]} Nf4 {[%clk 01:27:08]}
{[%emt 00:02:41]} 13. Nxf4 {[%clk 01:28:55]} {[%emt 00:00:57]} exf4 {[%clk
01:27:09]} {[%emt 00:00:29]} 14. Qb3 {[%clk 01:28:36]} {[%emt 00:00:50]} Qc8
{[%clk 01:25:02]} {[%emt 00:02:37]} 15. d4 {[%clk 01:25:53]} {[%emt 00:03:13]}
Bb6 {[%clk 01:23:48]} {[%emt 00:01:43]} 16. d5 {[%clk 01:22:11]} {[%emt
00:04:11]} exd5 {[%clk 01:23:01]} {[%emt 00:01:17]} 17. Qxd5+ {[%clk 01:22:06]}
{[%emt 00:00:35]} Kh8 {[%clk 01:21:45]} {[%emt 00:01:46]} 18. Rfe1 {[%clk
01:13:06]} {[%emt 00:09:30]} Ne7 {[%clk 01:12:10]} {[%emt 00:10:04]} 19. Qh5
{[%clk 01:11:17]} {[%emt 00:02:19]} Qe6 {[%clk 01:06:01]} {[%emt 00:06:40]} 20.
e5 {[%clk 01:09:16]} {[%emt 00:02:31]} Rf5 {[%clk 01:01:53]} {[%emt 00:04:38]}
21. Qh4 {[%clk 01:08:08]} {[%emt 00:01:39]} Ng6 {[%clk 01:00:24]} {[%emt
00:01:58]} 22. Qg4 {[%clk 01:06:41]} {[%emt 00:01:57]} h5 {[%clk 00:58:27]}
{[%emt 00:02:27]} 23. Ng5 {[%clk 01:06:45]} {[%emt 00:00:27]} hxg4 {[%clk
00:57:41]} {[%emt 00:01:15]} 24. Nxe6 {[%clk 01:07:03]} {[%emt 00:00:12]} Nxe5
{[%clk 00:56:26]} {[%emt 00:01:45]} 25. Nxf4 {[%clk 01:07:01]} {[%emt
00:00:33]} g3 {[%clk 00:55:12]} {[%emt 00:01:43]} 26. Be3 {[%clk 01:05:52]}
{[%emt 00:01:39]} gxf2+ {[%clk 00:54:33]} {[%emt 00:01:09]} 27. Bxf2 {[%clk
01:02:22]} {[%emt 00:04:00]} Bxf2+ {[%clk 00:54:19]} {[%emt 00:00:45]} 28. Kxf2
{[%clk 01:02:48]} {[%emt 00:00:04]} Rxf4+ {[%clk 00:53:54]} {[%emt 00:00:54]}
29. Kg3 {[%clk 01:02:40]} {[%emt 00:00:38]} Raf8 {[%clk 00:53:23]} {[%emt
00:01:01]} 30. Re2 {[%clk 01:02:29]} {[%emt 00:00:41]} b6 {[%clk 00:51:44]}
{[%emt 00:02:10]} 31. Rd1 {[%clk 01:02:31]} {[%emt 00:00:27]} R8f6 {[%clk
00:49:28]} {[%emt 00:02:46]} 32. b3 {[%clk 00:56:31]} {[%emt 00:06:31]} Kh7
{[%clk 00:48:12]} {[%emt 00:01:45]} 33. Rd5 {[%clk 00:55:46]} {[%emt 00:01:16]}
c6 {[%clk 00:46:55]} {[%emt 00:01:47]} 34. Rxd6 {[%clk 00:55:20]} {[%emt
00:00:56]} Rxd6 {[%clk 00:46:09]} {[%emt 00:01:15]} 35. Kxf4 {[%clk 00:55:27]}
{[%emt 00:00:22]} Ng6+ {[%clk 00:45:56]} {[%emt 00:00:44]} 36. Kf5 {[%clk
00:54:18]} {[%emt 00:01:40]} Rd5+ {[%clk 00:45:21]} {[%emt 00:01:04]} 37. Kg4
{[%clk 00:54:05]} {[%emt 00:00:42]} Rd3 {[%clk 00:44:00]} {[%emt 00:01:52]} 38.
Rc2 {[%clk 00:53:27]} {[%emt 00:01:09]} b5 {[%clk 00:43:32]} {[%emt 00:00:58]}
39. h4 {[%clk 00:51:01]} {[%emt 00:02:56]} Ne7 {[%clk 00:42:09]} {[%emt
00:01:52]} 40. a4 {[%clk 00:49:10]} {[%emt 00:02:22]} Nd5 {[%clk 00:41:28]}
{[%emt 00:01:11]} 41. Rc1 {[%clk 00:48:08]} {[%emt 00:01:31]} Rxc3 {[%clk
00:41:25]} {[%emt 00:00:34]} 42. Rxc3 {[%clk 00:48:24]} {[%emt 00:00:13]} Nxc3
{[%clk 00:41:42]} {[%emt 00:00:13]} 43. axb5 {[%clk 00:48:49]} {[%emt
00:00:05]} cxb5 {[%clk 00:41:56]} {[%emt 00:00:17]} 44. Kf4 {[%clk 00:49:10]}
{[%emt 00:00:08]} a4 {[%clk 00:42:15]} {[%emt 00:00:11]} 45. bxa4 {[%clk
00:49:28]} {[%emt 00:00:13]} bxa4 {[%clk 00:42:34]} {[%emt 00:00:11]} 46. g4
{[%clk 00:49:45]} {[%emt 00:00:13]} a3 {[%clk 00:42:51]} {[%emt 00:00:13]} 47.
g5 {[%clk 00:50:02]} {[%emt 00:00:12]} a2 {[%clk 00:43:03]} {[%emt 00:00:18]}
48. h5 {[%clk 00:50:15]} {[%emt 00:00:17]} a1=Q {[%clk 00:43:14]} {[%emt
00:00:19]} 49. g6+ {[%clk 00:50:21]} {[%emt 00:00:24]} Kh6 {[%clk 00:43:35]}
{[%emt 00:00:09]} 50. Kg4 {[%clk 00:50:43]} {[%emt 00:00:08]} Qg1+ {[%clk
00:43:47]} {[%emt 00:00:18]} 51. Kh3 {[%clk 00:50:54]} {[%emt 00:00:20]} Qg5
{[%clk 00:43:58]} {[%emt 00:00:19]} 52. Kh2 {[%clk 00:51:15]} {[%emt 00:00:09]}
Ne2 {[%clk 00:44:15]} {[%emt 00:00:13]} 53. Kh1 {[%clk 00:51:27]} {[%emt
00:00:17]} Qg1# {[%clk 00:44:34]} {[%emt 00:00:10]} 0-1

[Event "NJSK 2024 Cm"]
[Site "Groningen, Netherlands"]
[Date "2024.04.27"]
[Round "1.6"]
[White "Ganeshram, Niranjana"]
[Black "Jermin, Ayleanna"]
[Result "1-0"]
[TimeControl "90min/40moves + 30min + 30sec/move"]
[WhiteElo "1566"]
[BlackElo "1249"]

1. e4 {[%clk 01:30:58]} {[%emt 00:00:01]} e6 {[%clk 01:30:36]} {[%emt
00:00:24]} 2. d4 {[%clk 01:31:25]} {[%emt 00:00:04]} c5 {[%clk 01:29:21]}
{[%emt 00:01:45]} 3. Nf3 {[%clk 01:31:38]} {[%emt 00:00:16]} Nf6 {[%clk
01:28:52]} {[%emt 00:01:00]} 4. e5 {[%clk 01:31:10]} {[%emt 00:00:58]} Ng8
{[%clk 01:28:02]} {[%emt 00:01:19]} 5. Be3 {[%clk 01:30:39]} {[%emt 00:01:01]}
Qb6 {[%clk 01:26:08]} {[%emt 00:02:25]} 6. b3 {[%clk 01:29:35]} {[%emt
00:01:34]} Nc6 {[%clk 01:22:35]} {[%emt 00:04:03]} 7. Nbd2 {[%clk 01:27:00]}
{[%emt 00:03:04]} cxd4 {[%clk 01:18:53]} {[%emt 00:04:13]} 8. Nc4 {[%clk
01:24:34]} {[%emt 00:02:56]} Bb4+ {[%clk 01:17:11]} {[%emt 00:02:12]} 9. Bd2
{[%clk 01:21:47]} {[%emt 00:03:17]} Bxd2+ {[%clk 01:15:53]} {[%emt 00:01:47]}
10. Nfxd2 {[%clk 01:20:53]} {[%emt 00:01:24]} Qc5 {[%clk 01:15:16]} {[%emt
00:01:08]} 11. Nd6+ {[%clk 01:19:42]} {[%emt 00:01:40]} Kf8 {[%clk 01:15:12]}
{[%emt 00:00:34]} 12. f4 {[%clk 01:17:16]} {[%emt 00:02:57]} g5 {[%clk
01:15:01]} {[%emt 00:00:40]} 13. Qh5 {[%clk 01:13:36]} {[%emt 00:04:10]} Nxe5
{[%clk 01:13:08]} {[%emt 00:02:23]} 14. fxe5 {[%clk 01:12:50]} {[%emt
00:01:15]} Qxe5+ {[%clk 01:13:05]} {[%emt 00:00:32]} 15. N2e4 {[%clk 01:12:00]}
{[%emt 00:01:20]} Qa5+ {[%clk 01:11:52]} {[%emt 00:01:44]} 16. c3 {[%clk
01:11:29]} {[%emt 00:01:01]} Nh6 {[%clk 01:09:17]} {[%emt 00:03:05]} 17. Qxh6+
{[%clk 01:11:51]} {[%emt 00:00:09]} Ke7 {[%clk 01:09:34]} {[%emt 00:00:12]} 18.
Qf6+ {[%clk 01:12:12]} {[%emt 00:00:08]} Kf8 {[%clk 01:09:08]} {[%emt
00:00:56]} 19. Qxf7# {[%clk 01:12:04]} {[%emt 00:00:09]} 1-0

[Event "NJSK 2024 Cm"]
[Site "Groningen, Netherlands"]
[Date "2024.04.27"]
[Round "1.7"]
[White "Schipper, Sarah"]
[Black "Koorevaar, Sarah-Joy"]
[Result "0-1"]
[TimeControl "90min/40moves + 30min + 30sec/move"]
[WhiteElo "1238"]
[BlackElo "1544"]

1. e4 {[%clk 01:30:57]} {[%emt 00:00:02]} c5 {[%clk 01:30:57]} {[%emt
00:00:04]} 2. Nc3 {[%clk 01:31:17]} {[%emt 00:00:10]} e6 {[%clk 01:31:22]}
{[%emt 00:00:05]} 3. g3 {[%clk 01:29:44]} {[%emt 00:02:03]} Nc6 {[%clk
01:31:44]} {[%emt 00:00:09]} 4. Nf3 {[%clk 01:28:49]} {[%emt 00:01:24]} Qc7
{[%clk 01:32:09]} {[%emt 00:00:05]} 5. d3 {[%clk 01:27:13]} {[%emt 00:02:06]}
a6 {[%clk 01:32:23]} {[%emt 00:00:16]} 6. Bg2 {[%clk 01:26:03]} {[%emt
00:01:40]} b5 {[%clk 01:31:47]} {[%emt 00:01:07]} 7. a3 {[%clk 01:24:13]}
{[%emt 00:02:19]} Bb7 {[%clk 01:32:02]} {[%emt 00:00:15]} 8. O-O {[%clk
01:22:21]} {[%emt 00:02:22]} Rc8 {[%clk 01:32:12]} {[%emt 00:00:21]} 9. Re1
{[%clk 01:19:10]} {[%emt 00:03:40]} d6 {[%clk 01:30:41]} {[%emt 00:02:01]} 10.
Rb1 {[%clk 01:08:51]} {[%emt 00:10:49]} Be7 {[%clk 01:29:40]} {[%emt 00:01:31]}
11. b4 {[%clk 00:59:32]} {[%emt 00:09:49]} Bf6 {[%clk 01:29:48]} {[%emt
00:00:21]} 12. Ne2 {[%clk 00:58:17]} {[%emt 00:01:45]} cxb4 {[%clk 01:29:56]}
{[%emt 00:00:23]} 13. axb4 {[%clk 00:58:14]} {[%emt 00:00:33]} Na7 {[%clk
01:27:38]} {[%emt 00:02:49]} 14. Nfd4 {[%clk 00:53:20]} {[%emt 00:05:23]} Ne7
{[%clk 01:25:23]} {[%emt 00:02:45]} 15. Rb3 {[%clk 00:47:47]} {[%emt 00:06:04]}
e5 {[%clk 01:23:32]} {[%emt 00:02:20]} 16. Nf3 {[%clk 00:45:45]} {[%emt
00:02:31]} Qxc2 {[%clk 01:23:34]} {[%emt 00:00:29]} 17. Qxc2 {[%clk 00:45:47]}
{[%emt 00:00:28]} Rxc2 {[%clk 01:23:59]} {[%emt 00:00:04]} 18. Rb2 {[%clk
00:42:15]} {[%emt 00:04:03]} Rxb2 {[%clk 01:23:53]} {[%emt 00:00:36]} 19. Bxb2
{[%clk 00:42:40]} {[%emt 00:00:05]} Nac6 {[%clk 01:24:06]} {[%emt 00:00:17]} 20.
Bc3 {[%clk 00:42:16]} {[%emt 00:00:54]} O-O {[%clk 01:23:41]} {[%emt 00:00:55]}
21. d4 {[%clk 00:41:41]} {[%emt 00:01:05]} Rc8 {[%clk 01:22:45]} {[%emt
00:01:26]} 22. Rb1 {[%clk 00:40:00]} {[%emt 00:02:10]} exd4 {[%clk 01:20:44]}
{[%emt 00:02:31]} 23. Nfxd4 {[%clk 00:39:52]} {[%emt 00:00:38]} Nxd4 {[%clk
01:20:53]} {[%emt 00:00:22]} 24. Bxd4 {[%clk 00:40:01]} {[%emt 00:00:20]} Bxd4
{[%clk 01:21:17]} {[%emt 00:00:06]} 25. Nxd4 {[%clk 00:40:01]} {[%emt
00:00:31]} g6 {[%clk 01:20:17]} {[%emt 00:01:29]} 26. e5 {[%clk 00:36:27]}
{[%emt 00:04:04]} d5 {[%clk 01:19:06]} {[%emt 00:01:41]} 27. Ne2 {[%clk
00:30:55]} {[%emt 00:06:02]} Rd8 {[%clk 01:16:13]} {[%emt 00:03:24]} 28. h4
{[%clk 00:28:35]} {[%emt 00:02:50]} Rd7 {[%clk 01:14:36]} {[%emt 00:02:07]} 29.
Bh3 {[%clk 00:28:15]} {[%emt 00:00:50]} Rd8 {[%clk 01:10:12]} {[%emt 00:04:54]}
30. Rd1 {[%clk 00:27:14]} {[%emt 00:01:30]} Nc6 {[%clk 01:10:09]} {[%emt
00:00:34]} 31. Rb1 {[%clk 00:26:42]} {[%emt 00:01:02]} Nxe5 {[%clk 01:10:26]}
{[%emt 00:00:13]} 32. Bg2 {[%clk 00:25:19]} {[%emt 00:01:53]} Bc8 {[%clk
01:07:06]} {[%emt 00:03:50]} 33. Nd4 {[%clk 00:25:14]} {[%emt 00:00:35]} Rd6
{[%clk 01:05:07]} {[%emt 00:02:29]} 34. Rc1 {[%clk 00:21:57]} {[%emt 00:03:47]}
Bd7 {[%clk 01:01:14]} {[%emt 00:04:22]} 35. Rc2 {[%clk 00:19:01]} {[%emt
00:03:27]} Nd3 {[%clk 01:00:48]} {[%emt 00:00:56]} 36. Rd2 {[%clk 00:15:04]}
{[%emt 00:04:26]} Nxb4 {[%clk 01:01:08]} {[%emt 00:00:10]} 37. Nb3 {[%clk
00:15:13]} {[%emt 00:00:21]} Be6 {[%clk 01:00:40]} {[%emt 00:00:58]} 38. Rd1
{[%clk 00:13:12]} {[%emt 00:02:32]} Nc6 {[%clk 00:59:33]} {[%emt 00:01:37]} 39.
Nc5 {[%clk 00:12:23]} {[%emt 00:01:18]} a5 {[%clk 00:57:16]} {[%emt 00:02:48]}
40. Rb1 {[%clk 00:08:46]} {[%emt 00:04:07]} b4 {[%clk 00:57:05]} {[%emt
00:00:41]} 41. Rb2 {[%clk 00:07:21]} {[%emt 00:01:55]} Kf8 {[%clk 00:55:12]}
{[%emt 00:02:22]} 42. f4 {[%clk 00:05:27]} {[%emt 00:02:25]} Ke7 {[%clk
00:54:30]} {[%emt 00:01:11]} 43. Kf2 {[%clk 00:04:49]} {[%emt 00:01:09]} Rd8
{[%clk 00:54:30]} {[%emt 00:00:29]} 44. Ke2 {[%clk 00:03:20]} {[%emt 00:02:00]}
Rb8 {[%clk 00:53:25]} {[%emt 00:01:35]} 45. Kd3 {[%clk 00:02:05]} {[%emt
00:01:45]} Kd6 {[%clk 00:53:31]} {[%emt 00:00:24]} 46. Nb3 {[%clk 00:01:31]}
{[%emt 00:01:04]} a4 {[%clk 00:53:34]} {[%emt 00:00:27]} 47. Na1 {[%clk
00:01:09]} {[%emt 00:00:52]} a3 {[%clk 00:53:01]} {[%emt 00:01:03]} 48. Rb1
{[%clk 00:00:48]} {[%emt 00:00:50]} Bf5+ {[%clk 00:53:17]} {[%emt 00:00:15]} 49.
Be4 {[%clk 00:00:37]} {[%emt 00:00:41]} Bxe4+ {[%clk 00:53:41]} {[%emt
00:00:06]} 50. Kd2 {[%clk 00:00:56]} {[%emt 00:00:10]} Bxb1 {[%clk 00:54:05]}
{[%emt 00:00:06]} 51. Kc1 {[%clk 00:01:11]} {[%emt 00:00:15]} a2 {[%clk
00:54:18]} {[%emt 00:00:18]} 52. Kb2 {[%clk 00:01:29]} {[%emt 00:00:11]} d4
{[%clk 00:54:33]} {[%emt 00:00:15]} 53. Kc1 {[%clk 00:01:43]} {[%emt 00:00:17]}
d3 {[%clk 00:54:50]} {[%emt 00:00:13]} 54. Kd1 {[%clk 00:02:00]} {[%emt
00:00:13]} b3 {[%clk 00:55:15]} {[%emt 00:00:05]} 55. Kd2 {[%clk 00:01:38]}
{[%emt 00:00:52]} b2 {[%clk 00:55:35]} {[%emt 00:00:11]} 56. Nc2 {[%clk
00:01:43]} {[%emt 00:00:25]} a1=Q {[%emt 00:00:35]} 57. Nxa1 {[%clk 00:02:00]}
{[%emt 00:00:10]} bxa1=Q {[%emt 00:00:06]} 58. Ke3 {[%clk 00:02:22]} {[%emt
00:00:07]} d2 {[%clk 00:56:07]} {[%emt 00:00:20]} 59. Kxd2 {[%clk 00:02:47]}
{[%emt 00:00:05]} Rb3 {[%clk 00:56:29]} {[%emt 00:00:07]} 60. Ke2 {[%clk
00:02:57]} {[%emt 00:00:20]} Bf5 {[%clk 00:56:38]} {[%emt 00:00:22]} 61. Kf2
{[%clk 00:03:21]} {[%emt 00:00:06]} Qa2+ {[%clk 00:57:03]} {[%emt 00:00:05]} 62.
Kg1 {[%clk 00:03:45]} {[%emt 00:00:05]} Rb1# {[%clk 00:57:20]} {[%emt
00:00:14]} 0-1

[Event "NJSK 2024 Cm"]
[Site "Groningen, Netherlands"]
[Date "2024.04.28"]
[Round "2.1"]
[White "Roebers, Bregje"]
[Black "Elangkumaran, Anumitra"]
[Result "1-0"]
[TimeControl "90min/40moves + 30min + 30sec/move"]
[WhiteElo "1829"]
[BlackElo "1605"]

1. e4 {[%clk 01:30:57]} {[%emt 00:00:02]} e5 {[%clk 01:30:58]} {[%emt
00:00:02]} 2. Nc3 {[%clk 01:31:22]} {[%emt 00:00:05]} Nf6 {[%clk 01:31:13]}
{[%emt 00:00:15]} 3. f4 {[%clk 01:31:33]} {[%emt 00:00:18]} Nc6 {[%clk
01:31:21]} {[%emt 00:00:23]} 4. fxe5 {[%clk 01:31:07]} {[%emt 00:00:56]} Nxe5
{[%clk 01:30:50]} {[%emt 00:01:01]} 5. d4 {[%clk 01:30:31]} {[%emt 00:01:05]}
Nc6 {[%clk 01:29:07]} {[%emt 00:02:14]} 6. Nf3 {[%clk 01:28:15]} {[%emt
00:02:46]} d5 {[%clk 01:26:20]} {[%emt 00:03:17]} 7. e5 {[%clk 01:25:54]}
{[%emt 00:02:50]} Ne4 {[%clk 01:24:55]} {[%emt 00:01:56]} 8. Bd3 {[%clk
01:19:29]} {[%emt 00:06:56]} Nxc3 {[%clk 01:22:25]} {[%emt 00:02:59]} 9. bxc3
{[%clk 01:19:49]} {[%emt 00:00:10]} Be7 {[%clk 01:19:05]} {[%emt 00:03:50]} 10.
O-O {[%clk 01:18:36]} {[%emt 00:01:43]} O-O {[%clk 01:17:56]} {[%emt 00:01:39]}
11. Qe1 {[%clk 01:17:30]} {[%emt 00:01:36]} Bg4 {[%clk 01:14:50]} {[%emt
00:03:36]} 12. Qg3 {[%clk 01:15:00]} {[%emt 00:03:00]} Qd7 {[%clk 01:13:22]}
{[%emt 00:01:58]} 13. Nh4 {[%clk 01:09:06]} {[%emt 00:06:24]} Bxh4 {[%clk
01:06:27]} {[%emt 00:07:24]} 14. Qxh4 {[%clk 01:09:04]} {[%emt 00:00:32]} h5
{[%clk 01:03:57]} {[%emt 00:03:01]} 15. h3 {[%clk 01:06:23]} {[%emt 00:03:11]}
Qe7 {[%clk 01:01:14]} {[%emt 00:03:13]} 16. Bg5 {[%clk 01:02:58]} {[%emt
00:03:55]} Qe6 {[%clk 00:59:49]} {[%emt 00:01:55]} 17. hxg4 {[%clk 01:00:15]}
{[%emt 00:03:13]} Qxg4 {[%clk 00:59:26]} {[%emt 00:00:52]} 18. Qxg4 {[%clk
01:00:11]} {[%emt 00:00:34]} hxg4 {[%clk 00:59:47]} {[%emt 00:00:10]} 19. Rf4
{[%clk 00:59:56]} {[%emt 00:00:44]} Rfe8 {[%clk 00:56:45]} {[%emt 00:03:33]} 20.
Raf1 {[%clk 00:58:45]} {[%emt 00:01:41]} Rf8 {[%clk 00:54:28]} {[%emt
00:02:47]} 21. Rxg4 {[%clk 00:58:31]} {[%emt 00:00:44]} Nd8 {[%clk 00:52:33]}
{[%emt 00:02:24]} 22. Bf6 {[%clk 00:54:53]} {[%emt 00:04:09]} Ne6 {[%clk
00:46:12]} {[%emt 00:06:51]} 23. Bf5 {[%clk 00:51:33]} {[%emt 00:03:50]} Rfe8
{[%clk 00:42:57]} {[%emt 00:03:45]} 24. Bxe6 {[%clk 00:50:37]} {[%emt
00:01:26]} Rxe6 {[%clk 00:43:08]} {[%emt 00:00:19]} 25. Rxg7+ {[%clk 00:48:59]}
{[%emt 00:02:08]} Kf8 {[%clk 00:43:08]} {[%emt 00:00:30]} 26. Rh7 {[%clk
00:49:09]} {[%emt 00:00:19]} Rxf6 {[%clk 00:41:55]} {[%emt 00:01:43]} 27. Rxf6
{[%clk 00:48:11]} {[%emt 00:01:29]} c6 {[%clk 00:41:26]} {[%emt 00:00:58]} 28.
Rh8+ {[%clk 00:48:32]} {[%emt 00:00:09]} Ke7 {[%clk 00:41:32]} {[%emt
00:00:24]} 29. Rxa8 {[%clk 00:48:57]} {[%emt 00:00:07]} a6 {[%clk 00:41:50]}
{[%emt 00:00:11]} 30. Ra7 {[%clk 00:49:19]} {[%emt 00:00:08]} a5 {[%clk
00:41:51]} {[%emt 00:00:29]} 31. Rxb7+ {[%clk 00:49:42]} {[%emt 00:00:07]} Ke8
{[%clk 00:42:04]} {[%emt 00:00:17]} 32. Rfxf7 {[%clk 00:50:04]} {[%emt
00:00:08]} c5 {[%clk 00:42:04]} {[%emt 00:00:30]} 33. Rh7 {[%clk 00:50:25]}
{[%emt 00:00:09]} cxd4 {[%clk 00:42:22]} {[%emt 00:00:11]} 34. Rh8# {[%clk
00:50:18]} {[%emt 00:00:06]} 1-0

[Event "NJSK 2024 Cm"]
[Site "Groningen, Netherlands"]
[Date "2024.04.28"]
[Round "2.2"]
[White "Koorevaar, Sarah-Joy"]
[Black "Jorritsma, Eli Alia"]
[Result "0-1"]
[TimeControl "90min/40moves + 30min + 30sec/move"]
[WhiteElo "1544"]
[BlackElo "1777"]

1. d4 {[%clk 01:30:59]} g6 {[%clk 01:30:52]} {[%emt 00:00:08]} 2. e4 {[%clk
01:31:26]} {[%emt 00:00:03]} Bg7 {[%clk 01:31:13]} {[%emt 00:00:09]} 3. Nc3
{[%clk 01:31:54]} {[%emt 00:00:03]} d6 {[%clk 01:31:29]} {[%emt 00:00:13]} 4.
Be3 {[%clk 01:32:22]} {[%emt 00:00:02]} Nd7 {[%emt 00:00:56]} 5. h4 {[%clk
01:32:16]} h6 {[%clk 01:31:11]} {[%emt 00:00:58]} 6. f3 {[%clk 01:32:30]}
{[%emt 00:00:16]} a6 {[%clk 01:30:55]} {[%emt 00:00:47]} 7. Qd2 {[%clk
01:32:55]} {[%emt 00:00:05]} b5 {[%clk 01:30:55]} {[%emt 00:00:29]} 8. O-O-O
{[%clk 01:32:29]} {[%emt 00:00:55]} Bb7 {[%clk 01:30:51]} {[%emt 00:00:34]} 9.
Bd3 {[%clk 01:31:31]} {[%emt 00:01:29]} c5 {[%clk 01:26:28]} {[%emt 00:04:53]}
10. dxc5 {[%clk 01:28:18]} {[%emt 00:03:43]} Nxc5 {[%clk 01:26:31]} {[%emt
00:00:28]} 11. Bxc5 {[%clk 01:27:17]} {[%emt 00:01:30]} dxc5 {[%clk 01:26:47]}
{[%emt 00:00:13]} 12. Qf4 {[%clk 01:21:05]} {[%emt 00:06:41]} Qb8 {[%clk
01:21:11]} {[%emt 00:06:07]} 13. Nh3 {[%clk 01:14:18]} {[%emt 00:07:17]} Qxf4+
{[%clk 01:00:52]} {[%emt 00:20:50]} 14. Nxf4 {[%emt 00:00:07]} Bxc3 {[%clk
01:00:54]} {[%emt 00:00:26]} 15. bxc3 {[%clk 01:15:03]} {[%emt 00:00:10]} Nf6
{[%clk 00:57:41]} {[%emt 00:03:43]} 16. Bf1 {[%clk 01:10:18]} {[%emt 00:05:15]}
Rd8 {[%clk 00:52:34]} {[%emt 00:05:37]} 17. Rxd8+ {[%clk 01:10:10]} {[%emt
00:00:38]} Kxd8 {[%clk 00:52:57]} {[%emt 00:00:07]} 18. c4 {[%clk 01:10:01]}
{[%emt 00:00:38]} b4 {[%clk 00:52:23]} {[%emt 00:01:04]} 19. Nd5 {[%clk
01:08:44]} {[%emt 00:01:47]} Nxd5 {[%clk 00:50:59]} {[%emt 00:01:55]} 20. cxd5
{[%clk 01:09:09]} {[%emt 00:00:05]} Kc7 {[%clk 00:50:13]} {[%emt 00:01:16]} 21.
Bc4 {[%clk 01:08:57]} {[%emt 00:00:42]} f6 {[%clk 00:48:37]} {[%emt 00:02:06]}
22. f4 {[%clk 01:08:14]} {[%emt 00:01:12]} Rd8 {[%clk 00:46:07]} {[%emt
00:03:00]} 23. Rd1 {[%clk 01:07:49]} {[%emt 00:00:55]} e6 {[%clk 00:37:30]}
{[%emt 00:09:08]} 24. g3 {[%clk 01:04:16]} {[%emt 00:04:03]} exd5 {[%clk
00:30:03]} {[%emt 00:07:56]} 25. exd5 {[%clk 01:04:36]} {[%emt 00:00:10]} Rd6
{[%clk 00:28:37]} {[%emt 00:01:57]} 26. Rd3 {[%clk 01:00:53]} {[%emt 00:04:13]}
Kd7 {[%clk 00:26:09]} {[%emt 00:02:58]} 27. Kd2 {[%clk 01:00:30]} {[%emt
00:00:52]} Ke7 {[%clk 00:24:33]} {[%emt 00:02:06]} 28. g4 {[%clk 00:56:40]}
{[%emt 00:04:21]} Kf7 {[%clk 00:21:37]} {[%emt 00:03:26]} 29. f5 {[%clk
00:54:51]} {[%emt 00:02:19]} g5 {[%clk 00:18:53]} {[%emt 00:03:13]} 30. hxg5
{[%clk 00:53:50]} {[%emt 00:01:31]} fxg5 {[%clk 00:19:07]} {[%emt 00:00:16]} 31.
Re3 {[%clk 00:51:40]} {[%emt 00:02:41]} Bc8 {[%clk 00:15:53]} {[%emt 00:03:44]}
32. Kd3 {[%clk 00:46:36]} {[%emt 00:05:33]} Bd7 {[%clk 00:10:30]} {[%emt
00:05:53]} 33. Bb3 {[%clk 00:45:00]} {[%emt 00:02:05]} Bb5+ {[%clk 00:09:34]}
{[%emt 00:01:26]} 34. Bc4 {[%clk 00:45:18]} {[%emt 00:00:12]} Rxd5+ {[%clk
00:09:14]} {[%emt 00:00:50]} 0-1